bitfinex-derivatives/quotes_BTCF0:USTF0_20241214
["timestamp","ask_amount","ask_price","bid_price","bid_amount"]
[1734174465621,0.26003679,101540.0,101530.0,1.12819839]
[1734174466718,0.40760659,101540.0,101530.0,1.06695659]
[1734174466925,0.40760659,101540.0,101530.0,1.11005408]
[1734174467223,0.34636479,101540.0,101530.0,1.17129588]
[1734174467519,0.26003679,101540.0,101530.0,1.17129588]
[1734174467724,0.40760659,101540.0,101530.0,1.11005408]
[1734174469828,0.40760659,101540.0,101530.0,1.06695659]
[1734174469829,0.44000659,101540.0,101530.0,1.06695659]
[1734174472524,0.3220506,101540.0,101530.0,1.06695659]
[1734174474426,0.6828506,101540.0,101530.0,0.70615659]
[1734174475523,0.7440924,101540.0,101530.0,0.17660704]
[1734174475725,0.7752924,101540.0,101530.0,0.17660704]
[1734174476029,0.049244,101530.0,101520.0,1.29253393]
[1734174476230,0.22848589,101530.0,101520.0,1.33563443]
[1734174478835,0.22848589,101530.0,101520.0,1.34558226]
[1734174480730,0.37605569,101530.0,101520.0,1.16897522]
[1734174484825,0.37605569,101530.0,101520.0,1.34550973]
[1734174489536,0.37605569,101530.0,101520.0,1.16897522]
[1734174491534,0.2580556,101530.0,101520.0,1.16897522]
[1734174496240,0.2580556,101530.0,101520.0,1.46274688]
[1734174496433,0.2580556,101530.0,101520.0,1.16897522]
[1734174496634,0.2580556,101530.0,101520.0,1.46274688]
[1734174498540,0.2580556,101530.0,101520.0,1.69823019]
[1734174503148,0.2580556,101530.0,101520.0,1.33743019]
[1734174503348,0.2580556,101530.0,101520.0,1.69823019]
[1734174503547,0.2580556,101530.0,101520.0,1.46273245]
[1734174506256,0.26781648,101530.0,101520.0,1.46273245]
[1734174506439,0.44491673,101530.0,101520.0,1.21822712]
[1734174506643,0.44509177,101530.0,101520.0,0.32817215]
[1734174506848,0.29734693,101530.0,101520.0,0.32817215]
[1734174507148,0.29734693,101530.0,101520.0,0.45579601]
[1734174508346,0.29734693,101530.0,101520.0,0.21997036]
[1734174509043,0.23610513,101530.0,101520.0,0.21997036]
[1734174509345,0.29734693,101530.0,101520.0,0.17686986]
[1734174510051,0.29734693,101530.0,101520.0,0.22611786]
[1734174511148,0.29734693,101530.0,101520.0,0.17686986]
[1734174512747,0.29734693,101530.0,101520.0,0.02716986]
[1734174513055,0.049248,101520.0,101510.0,8.005e-05]
[1734174513353,0.75756587,101520.0,101510.0,8.005e-05]
[1734174513556,0.70967569,101520.0,101510.0,8.005e-05]
[1734174516059,0.80727569,101520.0,101510.0,8.005e-05]
[1734174518549,0.95469521,101520.0,101510.0,8.005e-05]
[1734174522549,0.77755112,101520.0,101510.0,8.005e-05]
[1734174527463,0.79702276,101520.0,101510.0,8.005e-05]
[1734174529454,0.67453916,101520.0,101510.0,8.005e-05]
[1734174529653,0.97416685,101520.0,101510.0,8.005e-05]
[1734174532367,0.82674733,101520.0,101510.0,8.005e-05]
[1734174538879,0.64960324,101520.0,101510.0,8.005e-05]
[1734174539074,0.64960324,101520.0,101510.0,0.04319082]
[1734174540570,0.85594012,101520.0,101510.0,0.04319082]
[1734174541176,0.64960324,101520.0,101510.0,0.04319082]
[1734174541568,0.85594012,101520.0,101510.0,0.04319082]
[1734174542670,0.64960324,101520.0,101510.0,8.005e-05]
[1734174545880,0.85594012,101520.0,101510.0,8.005e-05]
[1734174546574,0.64960324,101520.0,101510.0,8.005e-05]
[1734174546977,0.6301316,101520.0,101510.0,8.005e-05]
[1734174548078,0.65005652,101520.0,101510.0,8.005e-05]
[1734174548475,0.65005652,101520.0,101490.0,1.23469284]
[1734174548476,0.049258,101500.0,101490.0,1.23469284]
[1734174548683,0.25820288,101500.0,101490.0,1.23469284]
[1734174552278,0.19696108,101500.0,101490.0,1.23469284]
[1734174552471,0.25820288,101500.0,101490.0,1.19157915]
[1734174553078,0.25820288,101500.0,101490.0,1.234693]
[1734174555385,0.19696108,101500.0,101490.0,1.2959348]
[1734174555582,0.25820288,101500.0,101490.0,1.2959348]
[1734174556380,0.19696108,101500.0,101490.0,1.2959348]
[1734174557585,0.19696108,101500.0,101490.0,2.7959348]
[1734174557983,0.31507523,101500.0,101490.0,3.08970646]
[1734174558183,0.31507523,101500.0,101490.0,2.7959348]
[1734174558382,0.31507523,101500.0,101490.0,3.08970646]
[1734174559085,0.31507523,101500.0,101490.0,1.2959348]
[1734174559583,0.3150796,101500.0,101490.0,2.7959348]
[1734174559789,0.16737652,101500.0,101490.0,3.08970646]
[1734174559988,0.16737652,101500.0,101490.0,3.31733132]
[1734174560584,0.16737652,101500.0,101490.0,3.08170355]
[1734174560787,0.16737652,101500.0,101490.0,3.04640414]
[1734174560987,0.16737652,101500.0,101490.0,3.08158611]
[1734174563185,0.16737652,101500.0,101490.0,3.0384751]
[1734174563382,0.16737652,101500.0,101490.0,3.08158595]
[1734174563588,0.16737652,101500.0,101490.0,3.08162823]
[1734174564393,0.16737652,101500.0,101490.0,1.58162823]
[1734174565096,0.19696108,101500.0,101490.0,1.35387781]
[1734174565395,0.31509755,101500.0,101490.0,1.58147143]
[1734174567399,0.19696108,101500.0,101490.0,1.52022963]
[1734174567789,0.19696108,101500.0,101490.0,1.58147143]
[1734174568500,0.14770308,101500.0,101490.0,1.58147143]
[1734174569293,0.26585731,101500.0,101490.0,1.58147143]
[1734174569494,0.14770308,101500.0,101490.0,1.58147143]
[1734174569901,0.14770308,101500.0,101490.0,1.53836048]
[1734174572797,0.14770308,101500.0,101490.0,1.5385521]
[1734174573389,0.11816763,101500.0,101490.0,1.58166295]
[1734174573905,0.11816763,101500.0,101490.0,1.94290475]
[1734174575203,0.11816763,101500.0,101490.0,1.88166295]
[1734174577496,0.11816763,101500.0,101490.0,1.94290475]
[1734174577999,0.11816763,101500.0,101490.0,1.88166295]
[1734174578396,0.11816763,101500.0,101490.0,1.58166295]
[1734174579097,0.11816763,101500.0,101490.0,1.88166295]
[1734174579602,0.20676961,101500.0,101490.0,1.88166295]
[1734174580503,0.20676966,101500.0,101490.0,2.29551727]
[1734174581900,0.20676966,101500.0,101490.0,1.99551727]
[1734174582998,0.20676966,101500.0,101490.0,1.93427547]
[1734174583204,0.20676966,101500.0,101490.0,1.87303367]
[1734174583406,0.20676966,101500.0,101490.0,1.93427547]
[1734174584898,0.20676966,101500.0,101490.0,1.99551727]
[1734174585201,0.20676966,101500.0,101490.0,3.49551727]
[1734174586110,0.20676966,101500.0,101490.0,3.51501392]
[1734174586295,0.20676966,101500.0,101490.0,3.51548767]
[1734174586913,0.20676966,101500.0,101490.0,3.45424587]
[1734174588708,0.20676966,101500.0,101490.0,3.51548767]
[1734174588908,0.11472805,101520.0,101510.0,0.049253]
[1734174589104,0.11472805,101520.0,101510.0,0.15360565]
[1734174589312,0.11472805,101520.0,101510.0,0.6239888]
[1734174589607,0.11472805,101520.0,101510.0,0.58087795]
[1734174591715,0.33983148,101520.0,101510.0,0.58087795]
[1734174592005,0.29194001,101520.0,101510.0,0.58087795]
[1734174593905,0.35318181,101520.0,101510.0,0.51963615]
[1734174598101,0.35318181,101520.0,101510.0,0.049253]
[1734174603411,0.17596985,101520.0,101510.0,0.09236114]
[1734174603615,0.40116801,101520.0,101510.0,0.09236114]
[1734174603809,0.17596985,101520.0,101510.0,0.09236114]
[1734174604119,0.40116807,101520.0,101510.0,0.049253]
[1734174604317,0.35327639,101520.0,101510.0,0.049253]
[1734174606220,0.29203459,101520.0,101510.0,0.049253]
[1734174606425,0.35327639,101520.0,101510.0,0.28503049]
[1734174611426,0.29203459,101520.0,101510.0,0.28503049]
[1734174613324,0.29203459,101520.0,101510.0,0.34627229]
[1734174613713,0.25993459,101520.0,101510.0,0.34627229]
[1734174613938,0.08262805,101520.0,101510.0,0.38938022]
[1734174616226,0.08262805,101520.0,101510.0,0.32813842]
[1734174616431,0.30786091,101520.0,101510.0,0.32813842]
[1734174616723,0.25996953,101520.0,101510.0,0.28503049]
[1734174617122,0.32121133,101520.0,101510.0,0.28503049]
[1734174624134,0.32121133,101520.0,101510.0,1.78503049]
[1734174625030,0.32121133,101520.0,101510.0,1.82813854]
[1734174625730,0.32121133,101520.0,101510.0,1.78503049]
[1734174626836,0.25996953,101520.0,101510.0,1.78503049]
[1734174628533,0.25996953,101520.0,101510.0,0.28503049]
[1734174629422,0.25996953,101520.0,101510.0,0.32813869]
[1734174629423,0.25997117,101520.0,101510.0,0.32813869]
[1734174629627,0.25997117,101520.0,101510.0,0.28503049]
[1734174631237,0.25997117,101520.0,101510.0,0.23577749]
[1734174631238,0.32121297,101520.0,101510.0,0.23577749]
[1734174631422,0.68201297,101520.0,101510.0,0.23577749]
[1734174631828,0.68201297,101520.0,101500.0,1.5043803]
[1734174632127,0.19704457,101510.0,101500.0,1.5043803]
[1734174632328,0.19704457,101510.0,101500.0,1.20965844]
[1734174636238,0.37438769,101510.0,101500.0,1.25276803]
[1734174638229,0.19704457,101510.0,101500.0,1.25276803]
[1734174638630,0.37438769,101510.0,101500.0,1.25276803]
[1734174640839,0.19704457,101510.0,101500.0,1.25276803]
[1734174641037,0.19704457,101510.0,101500.0,1.20965844]
[1734174651147,0.19704457,101510.0,101500.0,1.25276793]
[1734174652540,0.37438769,101510.0,101500.0,1.25276793]
[1734174652735,0.19704457,101510.0,101500.0,1.25276793]
[1734174654342,0.37438769,101510.0,101500.0,1.25276793]
[1734174655442,0.19704457,101510.0,101500.0,1.25276793]
[1734174659349,0.19704457,101510.0,101500.0,1.54748979]
[1734174660351,0.19704457,101510.0,101500.0,1.20965844]
[1734174661247,0.19704457,101510.0,101500.0,1.26860281]
[1734174661443,0.19704457,101510.0,101500.0,1.50475068]
[1734174661643,0.19704457,101510.0,101500.0,1.26860281]
[1734174662045,0.19704457,101510.0,101500.0,1.50475055]
[1734174663351,0.14779157,101510.0,101500.0,1.50475055]
[1734174663940,0.14779157,101510.0,101500.0,1.56599235]
[1734174664951,0.14779157,101510.0,101500.0,1.50475055]
[1734174667855,0.32513469,101510.0,101500.0,1.54785995]
[1734174668445,0.32513469,101510.0,101500.0,1.77666637]
[1734174669853,0.17734312,101510.0,101500.0,1.77666637]
[1734174670446,0.32514305,101510.0,101500.0,1.77666637]
[1734174673857,0.32514305,101510.0,101500.0,1.77671238]
[1734174674661,0.14779993,101510.0,101500.0,1.60180644]
[1734174675159,0.26602843,101510.0,101500.0,1.66075081]
[1734174675361,0.1182285,101510.0,101500.0,1.66075081]
[1734174675661,0.1182285,101510.0,101500.0,1.60192923]
[1734174676160,0.1182285,101510.0,101500.0,1.60162133]
[1734174677462,0.20682863,101510.0,101500.0,1.95528756]
[1734174678561,0.20682863,101510.0,101500.0,1.60162133]
[1734174679569,0.20682863,101510.0,101500.0,1.60155227]
[1734174684274,1.3e-07,101510.0,101500.0,1.66279407]
[1734174684472,0.11830855,101520.0,101510.0,0.049253]
[1734174684769,0.11830855,101520.0,101510.0,2.8979529]
[1734174685168,0.11830855,101520.0,101510.0,3.36833605]
[1734174685474,0.11830855,101520.0,101510.0,3.13267764]
[1734174687564,8.005e-05,101520.0,101510.0,3.31019479]
[1734174687765,8.005e-05,101520.0,101510.0,3.12392144]
[1734174688467,8.005e-05,101520.0,101510.0,3.35942457]
[1734174688663,8.005e-05,101520.0,101510.0,3.12390135]
[1734174694972,8.005e-05,101520.0,101510.0,3.1338778]
[1734174702680,8.005e-05,101520.0,101510.0,3.13375844]
[1734174703575,8.005e-05,101520.0,101510.0,3.48742467]
[1734174703774,8.005e-05,101520.0,101510.0,3.13375844]
[1734174704479,8.005e-05,101520.0,101510.0,3.48742467]
[1734174706677,8.005e-05,101520.0,101510.0,3.19285165]
[1734174711787,8.005e-05,101520.0,101510.0,3.19319776]
[1734174715087,8.005e-05,101520.0,101510.0,1.69319776]
[1734174715481,8.005e-05,101520.0,101510.0,3.19319776]
[1734174716394,8.005e-05,101520.0,101510.0,3.19329155]
[1734174717092,8.005e-05,101520.0,101510.0,2.83249155]
[1734174717382,8.005e-05,101520.0,101510.0,3.55409155]
[1734174717987,8.005e-05,101520.0,101510.0,3.51098215]
[1734174720584,8.005e-05,101520.0,101510.0,3.51107801]
[1734174720985,8.005e-05,101520.0,101510.0,3.55418741]
[1734174721890,8.005e-05,101520.0,101510.0,2.83258741]
[1734174722282,8.005e-05,101520.0,101510.0,3.55418741]
[1734174723290,8.005e-05,101520.0,101510.0,2.83258741]
[1734174723494,8.005e-05,101520.0,101510.0,3.55418741]
[1734174723686,8.005e-05,101520.0,101510.0,3.55425441]
[1734174724086,8.005e-05,101520.0,101510.0,2.83265441]
[1734174724287,8.005e-05,101520.0,101510.0,3.55425441]
[1734174724487,8.005e-05,101520.0,101510.0,3.10996379]
[1734174724695,8.005e-05,101520.0,101510.0,3.83156379]
[1734174728594,8.005e-05,101520.0,101510.0,3.47789756]
[1734174729097,8.005e-05,101520.0,101510.0,3.49733694]
[1734174731591,8.005e-05,101520.0,101510.0,3.51213694]
[1734174732301,8.005e-05,101520.0,101510.0,3.49733694]
[1734174732692,8.005e-05,101520.0,101510.0,3.51213694]
[1734174734202,8.005e-05,101520.0,101510.0,3.51282167]
[1734174736602,0.11830855,101520.0,101510.0,3.51282167]
[1734174738003,0.11830855,101520.0,101510.0,1.91674687]
[1734174738205,0.11830855,101520.0,101510.0,1.97798867]
[1734174738206,0.15020855,101520.0,101510.0,1.97798867]
[1734174738598,0.15020855,101520.0,101510.0,3.83219178]
[1734174741805,0.15020855,101520.0,101510.0,3.83162876]
[1734174742911,0.15020855,101520.0,101510.0,3.80052876]
[1734174743501,0.15020855,101520.0,101510.0,3.52315319]
[1734174746309,0.15020855,101520.0,101510.0,3.52298661]
[1734174747522,0.15020855,101520.0,101510.0,3.46174481]
[1734174750611,0.15020855,101520.0,101510.0,3.46173591]
[1734174755311,0.15020855,101520.0,101510.0,3.46165555]
[1734174756711,0.15020855,101520.0,101510.0,3.49165555]
[1734174757019,0.15020855,101520.0,101510.0,2.83129735]
[1734174757228,0.15020855,101520.0,101510.0,3.55289735]
[1734174758519,0.11830855,101520.0,101510.0,3.55289735]
[1734174758912,0.11830855,101520.0,101510.0,3.58399735]
[1734174759520,0.11830855,101520.0,101510.0,2.86239735]
[1734174759714,0.11830855,101520.0,101510.0,3.58350358]
[1734174761118,0.11830855,101520.0,101510.0,3.61370358]
[1734174763817,8.005e-05,101520.0,101510.0,3.61370358]
[1734174764323,8.005e-05,101520.0,101510.0,3.61337527]
[1734174767717,8.005e-05,101520.0,101510.0,3.889466]
[1734174768819,8.005e-05,101520.0,101510.0,3.88903734]
[1734174769912,8.005e-05,101520.0,101510.0,3.53483423]
[1734174770225,8.005e-05,101520.0,101510.0,3.88885044]
[1734174772528,8.005e-05,101520.0,101510.0,3.90365044]
[1734174772919,8.005e-05,101520.0,101510.0,3.62779281]
[1734174773728,8.005e-05,101520.0,101510.0,3.62778619]
[1734174776334,8.005e-05,101520.0,101510.0,3.90363592]
[1734174776534,8.005e-05,101520.0,101510.0,3.62778619]
[1734174777333,8.005e-05,101520.0,101510.0,3.90363592]
[1734174778223,8.005e-05,101520.0,101510.0,3.90361542]
[1734174780838,8.005e-05,101520.0,101510.0,3.62777683]
[1734174781135,8.005e-05,101520.0,101510.0,3.90361542]
[1734174781533,8.005e-05,101520.0,101510.0,3.90364362]
[1734174781738,8.005e-05,101520.0,101510.0,3.6277897]
[1734174783636,8.005e-05,101520.0,101510.0,3.5053061]
[1734174783832,8.005e-05,101520.0,101510.0,3.6277897]
[1734174784531,8.005e-05,101520.0,101510.0,3.18204362]
[1734174784730,8.005e-05,101520.0,101510.0,3.90364362]
[1734174785240,8.005e-05,101520.0,101510.0,3.78116002]
[1734174785439,8.005e-05,101520.0,101510.0,3.90364362]
[1734174786238,8.005e-05,101520.0,101510.0,3.90451069]
[1734174788941,8.005e-05,101520.0,101510.0,3.18291069]
[1734174789144,8.005e-05,101520.0,101510.0,3.90451069]
[1734174790347,8.005e-05,101520.0,101510.0,3.18291069]
[1734174790546,8.005e-05,101520.0,101510.0,3.90451069]
[1734174790953,8.005e-05,101520.0,101510.0,3.90509981]
[1734174792140,8.005e-05,101520.0,101510.0,3.5510836]
[1734174794149,8.005e-05,101520.0,101510.0,3.55129256]
[1734174795645,8.005e-05,101520.0,101510.0,3.5510992]
[1734174795847,8.005e-05,101520.0,101510.0,2.8294992]
[1734174796151,8.005e-05,101520.0,101510.0,3.5510992]
[1734174796540,8.005e-05,101520.0,101510.0,3.32248104]
[1734174796744,8.005e-05,101520.0,101510.0,3.79920918]
[1734174796745,0.15080855,101520.0,101510.0,3.79920918]
[1734174800463,0.15080855,101520.0,101510.0,3.79892018]
[1734174800660,0.15080855,101520.0,101510.0,3.52244187]
[1734174802271,0.15080855,101520.0,101510.0,2.02244187]
[1734174802469,0.15080855,101520.0,101510.0,2.05544187]
[1734174802674,0.15080855,101520.0,101510.0,3.55544187]
[1734174804372,0.23942689,101520.0,101510.0,3.55544187]
[1734174804969,0.23942689,101520.0,101510.0,3.55546644]
[1734174809573,0.23942689,101520.0,101510.0,3.55536934]
[1734174811268,0.23942689,101520.0,101510.0,3.8317612]
[1734174814668,0.20692689,101520.0,101510.0,3.55536934]
[1734174814868,0.20692689,101520.0,101510.0,3.58586934]
[1734174816773,0.08869839,101520.0,101510.0,3.58586934]
[1734174816969,0.20692689,101520.0,101510.0,3.58586934]
[1734174817572,0.20692689,101520.0,101510.0,1.93288574]
[1734174817874,0.15020855,101520.0,101510.0,1.96112754]
[1734174818677,0.15020855,101520.0,101510.0,2.05366934]
[1734174819367,0.11830855,101520.0,101510.0,2.05366934]
[1734174819881,0.20692682,101520.0,101510.0,2.08376934]
[1734174823283,0.20692682,101520.0,101510.0,2.08393557]
[1734174823579,0.20692682,101520.0,101510.0,3.58393557]
[1734174828682,0.20692682,101520.0,101510.0,3.86052557]
[1734174828883,0.20692682,101520.0,101510.0,3.58393557]
[1734174829887,0.20692682,101520.0,101510.0,3.86052557]
[1734174831578,0.20692682,101520.0,101510.0,3.58393557]
[1734174834781,0.20692682,101520.0,101510.0,3.86052557]
[1734174836980,0.20692682,101520.0,101510.0,3.86019238]
[1734174838581,0.08869832,101520.0,101510.0,3.50594784]
[1734174841990,0.20692682,101520.0,101510.0,3.8599659]
[1734174842188,0.20692682,101520.0,101510.0,2.3599659]
[1734174842682,0.08869832,101520.0,101510.0,3.50594784]
[1734174842885,0.08869832,101520.0,101510.0,3.85996787]
[1734174844385,0.03328712,101520.0,101510.0,3.50594784]
[1734174844880,0.03328712,101520.0,101510.0,3.91855844]
[1734174845079,0.03328712,101520.0,101510.0,3.50594784]
[1734174849293,0.03328712,101520.0,101510.0,3.8599737]
[1734174849494,0.03328712,101520.0,101510.0,3.50594784]
[1734174850295,0.03328712,101520.0,101510.0,3.91855844]
[1734174850792,0.03328712,101520.0,101510.0,3.50594784]
[1734174851294,0.03328712,101520.0,101510.0,3.48650846]
[1734174851795,0.03328712,101520.0,101510.0,3.50130846]
[1734174852092,0.03328712,101520.0,101510.0,3.52145569]
[1734174852293,0.03328712,101520.0,101510.0,3.50665569]
[1734174852687,0.03328712,101520.0,101510.0,3.52145569]
[1734174853095,0.03328712,101520.0,101510.0,3.39897209]
[1734174853296,0.03328712,101520.0,101510.0,3.52145569]
[1734174854194,0.03328712,101520.0,101510.0,3.87547884]
[1734174854394,0.03328712,101520.0,101510.0,3.88169807]
[1734174856698,0.03328712,101520.0,101510.0,3.60190731]
[1734174857801,0.03328712,101520.0,101510.0,3.60197]
[1734174859101,0.03328712,101520.0,101510.0,2.88037]
[1734174859396,0.03328712,101520.0,101510.0,3.16023548]
[1734174859602,0.03328712,101520.0,101510.0,3.88183548]
[1734174865293,0.15151562,101520.0,101510.0,3.88183548]
[1734174866305,0.03328712,101520.0,101510.0,3.52781233]
[1734174866707,0.03328712,101520.0,101510.0,3.52792313]
[1734174871615,0.03328712,101520.0,101510.0,3.51312313]
[1734174872005,0.03328712,101520.0,101510.0,3.52792313]
[1734174872515,0.03328712,101520.0,101510.0,3.51312313]
[1734174872706,0.03328712,101520.0,101510.0,3.52792313]
[1734174874418,0.03328712,101520.0,101510.0,3.94053373]
[1734174874812,0.03328712,101520.0,101510.0,3.52792313]
[1734174880123,0.03328712,101520.0,101510.0,3.01315283]
[1734174880313,0.03328712,101520.0,101510.0,3.52807377]
[1734174884728,0.03328712,101520.0,101510.0,3.52804876]
[1734174885724,0.03328712,101520.0,101510.0,3.94065936]
[1734174887326,0.03328712,101520.0,101510.0,3.52804876]
[1734174887922,0.03328712,101520.0,101510.0,3.94065936]
[1734174888117,0.03328712,101520.0,101510.0,3.52804876]
[1734174889423,0.03328712,101520.0,101510.0,3.94065936]
[1734174890120,0.03328712,101520.0,101510.0,3.52804876]
[1734174892329,0.03328712,101520.0,101510.0,3.51324876]
[1734174892824,0.03328712,101520.0,101510.0,3.52804876]
[1734174893231,0.03328712,101520.0,101510.0,3.40556516]
[1734174893425,0.03328712,101520.0,101510.0,3.88212032]
[1734174894321,0.03328712,101520.0,101510.0,3.88213849]
[1734174895627,0.03328712,101520.0,101510.0,3.52804876]
[1734174896025,0.03328712,101520.0,101510.0,3.88215634]
[1734174896427,0.03328712,101520.0,101510.0,3.88216021]
[1734174896631,0.03328712,101520.0,101510.0,3.75967661]
[1734174896827,0.03328712,101520.0,101510.0,3.88216021]
[1734174898135,0.06618712,101520.0,101510.0,3.82076021]
[1734174898336,0.13168712,101520.0,101510.0,3.82076021]
[1734174898526,0.24991562,101520.0,101510.0,3.82076021]
[1734174898722,0.24991562,101520.0,101510.0,3.54076616]
[1734174899633,0.24991562,101520.0,101510.0,3.41828256]
[1734174899834,0.24991562,101520.0,101510.0,3.54076616]
[1734174900036,0.24991562,101520.0,101510.0,3.82076021]
[1734174901029,0.24991562,101520.0,101510.0,3.54076616]
[1734174903526,0.24991562,101520.0,101510.0,3.82076021]
[1734174903726,0.13168712,101520.0,101510.0,3.82076021]
[1734174907842,0.24991562,101520.0,101510.0,3.82076021]
[1734174908438,0.24991562,101520.0,101510.0,3.54076616]
[1734174909841,0.24991562,101520.0,101510.0,3.54146399]
[1734174911145,0.24991562,101520.0,101510.0,3.54136931]
[1734174912440,0.24991562,101520.0,101510.0,3.52656931]
[1734174912738,0.21711562,101520.0,101510.0,3.54136931]
[1734174913048,0.18441562,101520.0,101510.0,3.85428229]
[1734174913831,0.15151562,101520.0,101510.0,3.85428229]
[1734174914544,0.15151562,101520.0,101510.0,3.85337933]
[1734174914739,0.15151562,101520.0,101510.0,3.57315737]
[1734174915737,0.15151562,101520.0,101510.0,3.5731736]
[1734174920245,0.15151562,101520.0,101510.0,3.8535694]
[1734174921051,0.15151562,101520.0,101510.0,3.8387694]
[1734174924251,0.15151562,101520.0,101510.0,3.7162858]
[1734174924557,0.15151562,101520.0,101510.0,3.8387694]
[1734174924751,0.15151562,101520.0,101510.0,3.83900585]
[1734174925965,0.15151562,101520.0,101510.0,2.27776405]
[1734174926363,0.18211562,101520.0,101510.0,2.27776405]
[1734174926564,0.1488285,101520.0,101510.0,2.27776405]
[1734174926768,0.1488285,101520.0,101510.0,2.21652225]
[1734174927064,0.1488285,101520.0,101510.0,2.27776405]
[1734174927368,0.1488285,101520.0,101510.0,2.21652225]
[1734174927767,0.1488285,101520.0,101510.0,2.27776405]
[1734174928771,0.1488285,101520.0,101510.0,1.99731015]
[1734174929070,0.1488285,101520.0,101510.0,2.05855195]
[1734174930976,0.1488285,101520.0,101510.0,2.34031234]
[1734174931870,0.1488285,101520.0,101510.0,2.27907054]
[1734174932262,0.1488285,101520.0,101510.0,3.1000893]
[1734174933673,0.1488285,101520.0,101510.0,3.04004795]
[1734174933866,0.1488285,101520.0,101510.0,3.10128975]
[1734174935278,0.1488285,101520.0,101510.0,3.3941594]
[1734174935571,0.1980765,101520.0,101510.0,3.41712157]
[1734174935768,0.1980765,101520.0,101510.0,3.77368909]
[1734174935968,0.1980765,101520.0,101510.0,3.41957764]
[1734174937781,0.1980765,101520.0,101510.0,3.35833584]
[1734174937966,0.1980765,101520.0,101510.0,3.41957764]
[1734174941177,0.1980765,101520.0,101510.0,1.85833584]
[1734174941483,0.4410898,101520.0,101510.0,0.62417624]
[1734174941677,0.5018898,101520.0,101510.0,0.34457872]
[1734174942077,0.5018898,101520.0,101510.0,0.40582052]
[1734174942277,0.9239316,101520.0,101510.0,0.29532572]
[1734174943781,0.9239316,101520.0,101510.0,0.33843522]
[1734174943978,1.10127472,101520.0,101510.0,0.22020965]
[1734174945381,1.10127472,101520.0,101510.0,0.17710015]
[1734174946881,1.10127472,101520.0,101500.0,0.23613354]
[1734174947080,0.4712948,101510.0,101500.0,0.23613354]
[1734174947280,0.1104948,101510.0,101500.0,0.23613354]
[1734174947476,0.7712948,101510.0,101500.0,0.23613354]
[1734174947681,0.7712948,101510.0,101500.0,0.14490115]
[1734174947983,0.049258,101500.0,101490.0,1.05949917]
[1734174948179,0.049258,101500.0,101490.0,1.16385521]
[1734174948180,0.5084998,101500.0,101490.0,1.16385521]
[1734174948580,0.5084998,101500.0,101490.0,1.10261341]
[1734174948979,0.5084998,101500.0,101490.0,0.45317624]
[1734174948980,0.62635847,101500.0,101490.0,0.45317624]
[1734174949579,0.62635847,101500.0,101490.0,0.45367624]
[1734174951384,0.62635847,101500.0,101490.0,0.410562]
[1734174952888,0.32635847,101500.0,101490.0,0.410562]
[1734174954686,0.32635847,101500.0,101490.0,0.45367627]
[1734174954884,0.32635847,101500.0,101490.0,0.51491807]
[1734174955080,0.32635847,101500.0,101490.0,0.4718038]
[1734174955290,0.32635847,101500.0,101490.0,0.51491807]
[1734174955485,0.32635847,101500.0,101490.0,0.410562]
[1734174956190,0.32635847,101500.0,101490.0,0.4718038]
[1734174958187,0.32635847,101500.0,101490.0,0.51491813]
[1734174958895,0.32635847,101500.0,101490.0,0.4718038]
[1734174959296,0.32635847,101500.0,101490.0,0.51491809]
[1734174959696,0.32635847,101500.0,101490.0,0.4718038]
[1734174960201,0.26511667,101500.0,101490.0,0.4718038]
[1734174960389,0.23251667,101500.0,101490.0,0.51491807]
[1734174960996,0.19941667,101500.0,101490.0,0.51491807]
[1734174964284,0.2877659,101500.0,101490.0,0.51491807]
[1734174964598,0.2877659,101500.0,101490.0,0.4718038]
[1734174965188,0.19941667,101500.0,101490.0,0.4718038]
[1734174967297,0.19941667,101500.0,101490.0,0.51491779]
[1734174967604,0.16711667,101500.0,101490.0,0.4718038]
[1734174969093,0.31444001,101500.0,101490.0,0.4718038]
[1734174970199,0.19658134,101500.0,101490.0,0.51491781]
[1734174970401,0.19658134,101500.0,101490.0,0.4718038]
[1734174970698,0.19658134,101500.0,101490.0,0.5048038]
[1734174971498,0.19658134,101500.0,101490.0,0.54791778]
[1734174975100,0.37392446,101500.0,101490.0,0.54791778]
[1734174975903,0.37392446,101500.0,101490.0,0.48667598]
[1734174976103,0.37392446,101500.0,101490.0,0.5048038]
[1734174976395,0.37392446,101500.0,101490.0,0.54791787]
[1734174976598,0.37392446,101500.0,101490.0,0.54741787]
[1734174977103,0.22660112,101500.0,101490.0,0.54741787]
[1734174978102,0.22660112,101500.0,101490.0,0.48617607]
[1734174978404,0.22660112,101500.0,101490.0,0.54741787]
[1734174983308,0.22660112,101500.0,101490.0,0.5043038]
[1734174984401,0.28784292,101500.0,101490.0,0.443062]
[1734174984999,0.28784292,101500.0,101490.0,0.0923763]
[1734174985197,0.32054292,101500.0,101490.0,0.049262]
[1734174985599,0.38524292,101500.0,101490.0,0.049262]
[1734174986100,0.38524292,101500.0,101490.0,0.09237731]
[1734174990211,0.44648472,101500.0,101490.0,0.09237731]
[1734174990599,0.38524292,101500.0,101490.0,0.09237731]
[1734174992410,0.44648472,101500.0,101490.0,0.09237731]
[1734174993311,0.38524292,101500.0,101490.0,0.09237731]
[1734174993510,0.049263,101490.0,101480.0,0.082068]
[1734174993809,0.43541382,101490.0,101480.0,0.12568528]
[1734174994707,0.43541382,101490.0,101480.0,0.12518528]
[1734174995098,0.43541382,101490.0,101480.0,0.18642708]
[1734174995302,0.43541382,101490.0,101480.0,0.12518528]
[1734174995614,0.43541382,101490.0,101480.0,0.12568528]
[1734174996699,0.43541382,101490.0,101480.0,0.12518528]
[1734174997706,0.43541382,101490.0,101480.0,0.12568528]
[1734174998610,0.43541382,101490.0,101480.0,0.12518528]
[1734174999705,0.43541382,101490.0,101480.0,0.12568528]
[1734175000610,0.43541382,101490.0,101480.0,0.12518528]
[1734175001615,0.43541382,101490.0,101480.0,0.12568528]
[1734175002108,0.44535011,101490.0,101480.0,0.12568528]
[1734175002314,0.26812701,101490.0,101480.0,0.12568528]
[1734175002709,0.26812701,101490.0,101480.0,0.12518528]
[1734175003303,0.44535011,101490.0,101480.0,0.12518528]
[1734175003715,0.44535011,101490.0,101480.0,0.12568528]
[1734175004710,0.44535011,101490.0,101480.0,0.12518528]
[1734175005710,0.44535011,101490.0,101480.0,0.12568528]
[1734175006611,0.44535011,101490.0,101480.0,0.07591728]
[1734175007612,0.44535011,101490.0,101480.0,0.07641728]
[1734175008619,0.44535011,101490.0,101480.0,0.07591728]
[1734175009611,0.44535011,101490.0,101480.0,0.07641728]
[1734175009813,0.29766419,101490.0,101480.0,0.07641728]
[1734175011623,0.29766419,101490.0,101480.0,0.0333]
[1734175013725,0.29766419,101490.0,101480.0,0.082568]
[1734175014217,0.29766419,101490.0,101480.0,0.3187632]
[1734175017632,0.29766419,101490.0,101480.0,0.12568863]
[1734175018224,0.29766419,101490.0,101480.0,0.36188383]
[1734175018525,0.29766419,101490.0,101480.0,0.12568863]
[1734175019234,0.29766419,101490.0,101480.0,0.36188383]
[1734175020130,0.23642239,101490.0,101480.0,0.78392563]
[1734175020631,0.38414122,101490.0,101480.0,0.78392563]
[1734175020836,0.44538302,101490.0,101480.0,0.78392563]
[1734175021031,0.29766419,101490.0,101480.0,0.78392563]
[1734175021836,0.29766419,101490.0,101480.0,0.78342563]
[1734175022535,0.23642239,101490.0,101480.0,0.78342563]